[Event "27th Sharjah International Rapid Chess-c"]
[Site "Sharjah"]
[Date "2022.04.07"]
[Round "5.20"]
[White "Ainikkal, Shaheen"]
[Black "Delloro, Noli"]
[Result "0-1"]
[ECO "A06"]
[WhiteElo "1315"]
[BlackElo "1756"]
[Annotator "NA RC"]
[PlyCount "100"]
[EventDate "2022.04.07"]
[EventType "rapid"]
[EventCountry "UAE"]
[SourceTitle "playchess.com"]
[Source "ChessBase"]
[SourceQuality "1"]
[TimeControl "600+3"]

1. Nf3 {[%emt 0:00:03]} d5 {[%emt 0:00:02]} 2. g3 {[%emt 0:00:01]} Bf5 {[%emt 0:00:04]} 3. Bg2 {[%emt 0:00:03]} c6 {[%emt 0:00:01]} 4. O-O {[%emt 0:00:04]} Nd7 {[%emt 0:00:01]} 5. d4 {[%emt 0:00:02]} e6 {[%emt 0:00:02]} 6. c3 {[%emt 0:00:04]} Ngf6 {[%emt 0:00:02]} 7. Nh4 {[%emt 0:00:03]} Bg4 {[%emt 0:00:18]} 8. h3 {[%emt 0:00:02]} Bh5 {[%emt 0:00:01]} 9. Bg5 {[%emt 0:00:03]} Be7 {[%emt 0:00:10]} 10. g4 {[%emt 0:00:06]} Bg6 {[%emt 0:00:02]} 11. Nxg6 {[%emt 0:00:02]} hxg6 {[%emt 0:00:01]} 12. Qb3 {[%emt 0:00:02]} Qb6 {[%emt 0:00:04]} 13. Nd2 {[%emt 0:00:28]} a5 {[%emt 0:00:28]} 14. Rfe1 {[%emt 0:00:37]} a4 {[%emt 0:00:03]} 15. Qxb6 {[%emt 0:00:04]} Nxb6 {[%emt 0:00:02]} 16. a3 {[%emt 0:00:04]} Nfd7 {[%emt 0:00:45]} 17. Bxe7 {[%emt 0:00:04]} Kxe7 {[%emt 0:00:02]} 18. e4 {[%emt 0:00:01]} Kd6 {[%emt 0:00:15]} 19. e5+ {[%emt 0:00:11]} Ke7 {[%emt 0:00:01]} 20. Re3 {[%emt 0:00:06]} c5 {[%emt 0:00:05]} 21. Rc1 {[%emt 0:00:05]} Rac8 {[%emt 0:00:02]} 22. Rd3 {[%emt 0:00:10]} cxd4 {[%emt 0:00:20]} 23. Rxd4 {[%emt 0:00:07]} Nxe5 {[%emt 0:00:09]} 24. f4 {[%emt 0:00:21]} Nec4 {[%emt 0:00:16]} 25. Nxc4 {[%emt 0:00:06]} Nxc4 {[%emt 0:00:02]} 26. Rc2 {[%emt 0:00:08]} Rc5 {[%emt 0:00:15]} 27. Re2 {[%emt 0:00:02]} Kd6 {[%emt 0:00:33]} 28. Bf1 {[%emt 0:00:21]} b5 {[%emt 0:00:54]} 29. Kh2 {[%emt 0:00:33]} Rcc8 {[%emt 0:00:13]} 30. Rf2 {[%emt 0:01:11]} Ne3 {[%emt 0:00:07]} 31. Be2 {[%emt 0:00:34]} Nc4 {[%emt 0:00:20]} 32. Bd3 {[%emt 0:00:23]} Rb8 {[%emt 0:00:14]} 33. Re2 {[%emt 0:00:38]} Na5 {[%emt 0:00:38]} 34. Rb4 {[%emt 0:00:21]} Nc4 {[%emt 0:00:05]} 35. Bxc4 {[%emt 0:00:04]} dxc4 {[%emt 0:00:03]} 36. Rd2+ {[%emt 0:00:03]} Kc6 {[%emt 0:00:01]} 37. Kg3 {[%emt 0:00:08]} Rbd8 {[%emt 0:00:05]} 38. Re2 {[%emt 0:00:05]} Rd3+ {[%emt 0:00:04]} 39. Kf2 {[%emt 0:00:17]} Rhxh3 {[%emt 0:00:10]} 40. Re5 {[%emt 0:00:03]} Rd5 {[%emt 0:00:01]} 41. Rxd5 {[%emt 0:00:14]} exd5 {[%emt 0:00:03]} 42. f5 {[%emt 0:00:03]} gxf5 {[%emt 0:00:04]} 43. gxf5 {[%emt 0:00:02]} Rd3 {[%emt 0:00:03]} 44. Ke2 {[%emt 0:00:17]} Kc5 {[%emt 0:00:02]} 45. Kf2 {[%emt 0:00:05]} d4 {[%emt 0:00:25]} 46. cxd4+ {[%emt 0:00:07]} Rxd4 {[%emt 0:00:01]} 47. Ke3 {[%emt 0:00:03]} Rd3+ {[%emt 0:00:01]} 48. Kf4 {[%emt 0:00:03]} Rb3 {[%emt 0:00:11]} 49. Rxb3 {[%emt 0:00:16]} cxb3 {[%emt 0:00:02]} 50. Ke4 {[%emt 0:00:10]} b4 {[%emt 0:00:01]} 0-1

[Event "27th Sharjah International Rapid Chess-c"]
[Site "Sharjah"]
[Date "2022.04.07"]
[Round "5.21"]
[White "Yahya Shuaib Al Kaff"]
[Black "Majed Ali, Abdouli"]
[Result "1-0"]
[ECO "A45"]
[WhiteElo "1346"]
[BlackElo "1687"]
[Annotator "NA RC"]
[PlyCount "41"]
[EventDate "2022.04.07"]
[EventType "rapid"]
[EventCountry "UAE"]
[SourceTitle "playchess.com"]
[Source "ChessBase"]
[SourceQuality "1"]
[TimeControl "600+3"]

1. d4 {[%emt 0:00:01]} Nf6 {[%emt 0:00:02]} 2. Bf4 {[%emt 0:00:02]} e6 {[%emt 0:00:01]} 3. e3 {[%emt 0:00:01]} b6 {[%emt 0:00:02]} 4. Nf3 {[%emt 0:00:04]} Bb7 {[%emt 0:00:05]} 5. Nbd2 {[%emt 0:00:23]} c5 {[%emt 0:00:02]} 6. c3 {[%emt 0:00:01]} Be7 {[%emt 0:00:08]} 7. Bd3 {[%emt 0:00:03]} O-O {[%emt 0:00:03]} 8. O-O {[%emt 0:00:04]} d6 {[%emt 0:00:13]} 9. Qe2 {[%emt 0:00:03]} Nbd7 {[%emt 0:00:16]} 10. e4 {[%emt 0:00:32]} h6 {[%emt 0:00:15]} 11. h3 {[%emt 0:01:04]} Re8 {[%emt 0:00:36]} 12. e5 {[%emt 0:00:31]} dxe5 {[%emt 0:00:19]} 13. Nxe5 {[%emt 0:00:04]} cxd4 {[%emt 0:00:14]} 14. cxd4 {[%emt 0:00:02]} Nxe5 {[%emt 0:00:19]} 15. Bxe5 {[%emt 0:00:07]} Bd6 {[%emt 0:00:43]} 16. Nc4 {[%emt 0:00:49]} Bb8 {[%emt 0:01:33]} 17. a4 {[%emt 0:00:52]} Qd5 {[%emt 0:00:43]} 18. f3 {[%emt 0:00:43]} Rd8 {[%emt 0:00:38]} 19. Rfd1 {[%emt 0:00:37]} Nd7 {[%emt 0:01:44]} 20. Be4 {[%emt 0:00:31]} Nxe5 {[%emt 0:00:25]} 21. Bxd5 {[%emt 0:00:03]} 1-0

[Event "27th Sharjah International Rapid Chess-c"]
[Site "Sharjah"]
[Date "2022.04.07"]
[Round "5.22"]
[White "Soud, Jaber"]
[Black "Mamantuc Ibrahim Jr."]
[Result "1/2-1/2"]
[ECO "A06"]
[WhiteElo "1414"]
[BlackElo "1564"]
[Annotator "NA RC"]
[PlyCount "133"]
[EventDate "2022.04.07"]
[EventType "rapid"]
[EventCountry "UAE"]
[SourceTitle "playchess.com"]
[Source "ChessBase"]
[SourceQuality "1"]
[TimeControl "600+3"]

1. Nf3 {[%emt 0:00:32]} d5 {[%emt 0:00:05]} 2. g3 {[%emt 0:00:00]} f5 {[%emt 0:00:03]} 3. Bg2 {[%emt 0:00:03]} Nf6 {[%emt 0:00:01]} 4. O-O {[%emt 0:00:02]} e6 {[%emt 0:00:01]} 5. d4 {[%emt 0:00:01]} a6 {[%emt 0:00:02]} 6. c4 {[%emt 0:00:02]} c6 {[%emt 0:00:01]} 7. Nc3 {[%emt 0:00:06]} Be7 {[%emt 0:00:01]} 8. Ne5 {[%emt 0:00:05]} O-O {[%emt 0:00:02]} 9. f3 {[%emt 0:00:10]} Bd6 {[%emt 0:00:04]} 10. e4 {[%emt 0:00:06]} dxe4 {[%emt 0:00:16]} 11. fxe4 {[%emt 0:00:02]} Bxe5 {[%emt 0:00:02]} 12. dxe5 {[%emt 0:00:03]} Qb6+ {[%emt 0:00:08]} 13. Kh1 {[%emt 0:00:03]} Ng4 {[%emt 0:00:02]} 14. Qe2 {[%emt 0:00:09]} Nd7 {[%emt 0:00:15]} 15. exf5 {[%emt 0:00:23]} exf5 {[%emt 0:02:08]} 16. Bf4 {[%emt 0:00:51]} Nc5 {[%emt 0:00:15]} 17. h3 {[%emt 0:00:22]} Nh6 {[%emt 0:00:09]} 18. Bxh6 gxh6 {[%emt 0:00:01]} 19. b3 {[%emt 0:00:41]} Be6 {[%emt 0:00:09]} 20. Qe3 {[%emt 0:00:12]} Kg7 {[%emt 0:00:09]} 21. Rad1 {[%emt 0:00:15]} Rad8 {[%emt 0:00:08]} 22. Rd6 {[%emt 0:00:09]} Rfe8 {[%emt 0:01:12]} 23. Rxf5 {[%emt 0:02:16]} Rxd6 {[%emt 0:01:31]} 24. exd6 {[%emt 0:00:02]} Nd7 {[%emt 0:00:38]} 25. Qxb6 {[%emt 0:00:28]} Nxb6 {[%emt 0:00:01]} 26. Re5 {[%emt 0:00:12]} Nd7 {[%emt 0:00:04]} 27. Re1 {[%emt 0:00:09]} Bf7 {[%emt 0:00:32]} 28. Re4 {[%emt 0:01:37]} Bg6 {[%emt 0:00:08]} 29. Rd4 {[%emt 0:00:26]} Re1+ 30. Kh2 Rc1 {[%emt 0:00:26]} 31. Ne2 {[%emt 0:00:36]} Rc2 {[%emt 0:00:04]} 32. Nf4 {[%emt 0:00:14]} Rxa2 {[%emt 0:00:23]} 33. Ne6+ {[%emt 0:00:02]} Kf6 {[%emt 0:00:02]} 34. Nd8 {[%emt 0:00:31]} Ke5 {[%emt 0:00:15]} 35. Rd1 {[%emt 0:00:01]} Be4 {[%emt 0:00:08]} 36. Rg1 {[%emt 0:00:09]} Kxd6 {[%emt 0:00:20]} 37. Kh1 {[%emt 0:00:09]} Bxg2+ {[%emt 0:00:21]} 38. Rxg2 {[%emt 0:00:00]} Rxg2 39. Kxg2 {[%emt 0:00:01]} Kc7 {[%emt 0:00:06]} 40. Nf7 {[%emt 0:00:01]} Nc5 {[%emt 0:00:01]} 41. b4 {[%emt 0:00:31]} Nd3 {[%emt 0:00:02]} 42. b5 {[%emt 0:00:01]} cxb5 {[%emt 0:00:04]} 43. cxb5 {[%emt 0:00:00]} axb5 {[%emt 0:00:03]} 44. Kf3 {[%emt 0:00:01]} b4 {[%emt 0:00:11]} 45. Ke3 {[%emt 0:00:01]} Nc5 {[%emt 0:00:04]} 46. g4 {[%emt 0:00:25]} b3 {[%emt 0:00:03]} 47. Kd2 {[%emt 0:00:00]} Kd7 {[%emt 0:00:03]} 48. Nxh6 {[%emt 0:00:05]} Ke6 {[%emt 0:00:05]} 49. Nf5 {[%emt 0:00:01]} Ke5 {[%emt 0:00:07]} 50. Kc3 {[%emt 0:00:03]} b5 {[%emt 0:00:02]} 51. Ne3 {[%emt 0:00:08]} b4+ {[%emt 0:00:02]} 52. Kxb4 {[%emt 0:00:04]} b2 {[%emt 0:00:02]} 53. Nc4+ {[%emt 0:00:01]} Kf4 {[%emt 0:00:05]} 54. Nxb2 {[%emt 0:00:01]} Ne4 {[%emt 0:00:02]} 55. Kc4 {[%emt 0:00:03]} Kg3 {[%emt 0:00:02]} 56. Kd4 {[%emt 0:00:02]} Nf2 {[%emt 0:00:03]} 57. Nc4 {[%emt 0:00:05]} Kxh3 {[%emt 0:00:07]} 58. Ne3 {[%emt 0:00:08]} Nxg4 {[%emt 0:00:03]} 59. Nf5 {[%emt 0:00:01]} Nh2 {[%emt 0:00:13]} 60. Ke3 {[%emt 0:00:05]} Kg4 {[%emt 0:00:03]} 61. Nd4 {[%emt 0:00:04]} h5 {[%emt 0:00:03]} 62. Kf2 {[%emt 0:00:01]} Kf4 {[%emt 0:00:08]} 63. Kg2 {[%emt 0:00:03]} Ng4 {[%emt 0:00:02]} 64. Ne2+ {[%emt 0:00:01]} Kg5 {[%emt 0:00:05]} 65. Ng3 {[%emt 0:00:03]} Ne3+ {[%emt 0:00:25]} 66. Kf3 {[%emt 0:00:05]} Nf5 {[%emt 0:00:07]} 67. Nxh5 {[%emt 0:00:03]} 1/2-1/2

[Event "27th Sharjah International Rapid Chess-c"]
[Site "Sharjah"]
[Date "2022.04.07"]
[Round "5.23"]
[White "Sahil Saxena"]
[Black "Thaarak Charen Saravankumar"]
[Result "0-1"]
[ECO "D00"]
[WhiteElo "1222"]
[BlackElo "1742"]
[Annotator "NA RC"]
[PlyCount "78"]
[EventDate "2022.04.07"]
[EventType "rapid"]
[EventCountry "UAE"]
[SourceTitle "playchess.com"]
[Source "ChessBase"]
[SourceQuality "1"]
[TimeControl "600+3"]

1. d4 {[%emt 0:00:01]} d5 {[%emt 0:00:01]} 2. Bf4 {[%emt 0:00:01]} Nf6 {[%emt 0:00:02]} 3. e3 {[%emt 0:00:01]} c6 {[%emt 0:00:02]} 4. Nf3 {[%emt 0:00:03]} Qb6 {[%emt 0:00:22]} 5. Qc1 {[%emt 0:00:32]} Bf5 {[%emt 0:00:25]} 6. Bd3 {[%emt 0:00:12]} Bxd3 {[%emt 0:00:04]} 7. cxd3 {[%emt 0:00:01]} Nbd7 {[%emt 0:00:32]} 8. Nc3 {[%emt 0:00:06]} Nh5 {[%emt 0:01:04]} 9. Bg3 {[%emt 0:00:07]} Nxg3 {[%emt 0:00:02]} 10. hxg3 {[%emt 0:00:01]} e6 {[%emt 0:00:17]} 11. Ne5 {[%emt 0:00:21]} Nxe5 {[%emt 0:00:06]} 12. dxe5 {[%emt 0:00:01]} d4 {[%emt 0:00:25]} 13. exd4 {[%emt 0:00:39]} Qxd4 {[%emt 0:00:02]} 14. Qe3 {[%emt 0:00:01]} Qb4 {[%emt 0:00:28]} 15. Qe2 {[%emt 0:01:03]} Rd8 {[%emt 0:00:40]} 16. Rh4 {[%emt 0:00:47]} Qa5 {[%emt 0:00:12]} 17. a3 {[%emt 0:00:54]} Be7 {[%emt 0:00:48]} 18. Rg4 {[%emt 0:00:39]} g5 {[%emt 0:00:05]} 19. Ra4 {[%emt 0:00:49]} Qb6 {[%emt 0:00:06]} 20. O-O-O {[%emt 0:00:32]} a5 {[%emt 0:01:34]} 21. Qe3 {[%emt 0:00:34]} Qc7 {[%emt 0:00:07]} 22. f4 {[%emt 0:00:05]} b5 {[%emt 0:00:06]} 23. Re4 {[%emt 0:00:03]} b4 {[%emt 0:00:11]} 24. axb4 {[%emt 0:00:23]} axb4 {[%emt 0:00:01]} 25. Ne2 {[%emt 0:00:16]} Qa5 {[%emt 0:00:08]} 26. Kd2 {[%emt 0:00:30]} Qa2 {[%emt 0:00:42]} 27. Ke1 {[%emt 0:00:28]} Qxb2 {[%emt 0:00:13]} 28. Rd2 {[%emt 0:00:06]} Qa1+ {[%emt 0:00:04]} 29. Kf2 {[%emt 0:00:01]} Qa5 {[%emt 0:00:37]} 30. Rd4 {[%emt 0:00:19]} Rxd4 {[%emt 0:00:12]} 31. Nxd4 {[%emt 0:00:08]} Bc5 {[%emt 0:00:04]} 32. Ke2 {[%emt 0:00:56]} Qb6 {[%emt 0:00:11]} 33. Qe4 {[%emt 0:00:07]} Bxd4 {[%emt 0:00:06]} 34. Rc2 {[%emt 0:00:00]} Bc3 {[%emt 0:00:07]} 35. Qc4 {[%emt 0:00:05]} g4 {[%emt 0:00:19]} 36. Ra2 {[%emt 0:00:03]} O-O {[%emt 0:00:05]} 37. Ra6 {[%emt 0:00:08]} Qg1 {[%emt 0:00:04]} 38. d4 {[%emt 0:00:23]} Qxg2+ {[%emt 0:00:11]} 39. Kd3 {[%emt 0:00:05]} Qf1+ {[%emt 0:00:01]} 0-1

[Event "27th Sharjah International Rapid Chess-c"]
[Site "Sharjah"]
[Date "2022.04.07"]
[Round "5.24"]
[White "Osman Ibraheem"]
[Black "Safin, Safarullakhan"]
[Result "1-0"]
[ECO "C02"]
[WhiteElo "1787"]
[BlackElo "1301"]
[Annotator "NA RC"]
[PlyCount "137"]
[EventDate "2022.04.07"]
[EventType "rapid"]
[EventCountry "UAE"]
[SourceTitle "playchess.com"]
[Source "ChessBase"]
[SourceQuality "1"]
[TimeControl "600+3"]

1. e4 {[%emt 0:00:17]} e6 {[%emt 0:00:04]} 2. d4 {[%emt 0:00:01]} d5 {[%emt 0:00:03]} 3. e5 {[%emt 0:00:02]} c5 {[%emt 0:00:05]} 4. c3 {[%emt 0:00:02]} Nc6 {[%emt 0:00:08]} 5. Nf3 {[%emt 0:00:01]} Qb6 {[%emt 0:00:07]} 6. Bd3 {[%emt 0:00:05]} Bd7 {[%emt 0:00:06]} 7. Bc2 {[%emt 0:00:02]} cxd4 {[%emt 0:00:15]} 8. cxd4 {[%emt 0:00:02]} Bb4+ {[%emt 0:00:16]} 9. Nc3 {[%emt 0:00:02]} Nge7 {[%emt 0:00:08]} 10. O-O {[%emt 0:00:03]} h6 {[%emt 0:00:15]} 11. a3 {[%emt 0:00:17]} Bxc3 {[%emt 0:00:09]} 12. bxc3 {[%emt 0:00:03]} O-O {[%emt 0:00:10]} 13. Qd3 {[%emt 0:00:05]} Ng6 {[%emt 0:00:32]} 14. Nh4 {[%emt 0:00:22]} Nce7 {[%emt 0:00:08]} 15. a4 {[%emt 0:00:28]} Qc7 {[%emt 0:00:26]} 16. Ba3 {[%emt 0:00:07]} Be8 {[%emt 0:00:17]} 17. Bd6 {[%emt 0:00:19]} Qd7 {[%emt 0:00:12]} 18. a5 {[%emt 0:00:10]} f6 {[%emt 0:00:24]} 19. Ba4 {[%emt 0:00:42]} Qd8 {[%emt 0:00:17]} 20. Bxe8 {[%emt 0:00:03]} Nxh4 {[%emt 0:00:15]} 21. Ba4 {[%emt 0:00:36]} Nhf5 {[%emt 0:00:07]} 22. Bxe7 {[%emt 0:00:13]} Qxe7 {[%emt 0:00:03]} 23. Rfe1 {[%emt 0:00:46]} fxe5 {[%emt 0:00:25]} 24. Rxe5 {[%emt 0:00:03]} Qf6 {[%emt 0:00:29]} 25. Qe2 {[%emt 0:00:29]} Nh4 {[%emt 0:00:41]} 26. Rxe6 {[%emt 0:01:00]} Qg5 {[%emt 0:00:09]} 27. g3 {[%emt 0:00:03]} Nf3+ {[%emt 0:00:12]} 28. Kg2 {[%emt 0:00:01]} Qh5 {[%emt 0:00:17]} 29. h4 {[%emt 0:00:39]} Rf5 {[%emt 0:01:08]} 30. Re8+ {[%emt 0:00:10]} Rxe8 {[%emt 0:00:16]} 31. Qxe8+ {[%emt 0:00:02]} Qxe8 {[%emt 0:00:04]} 32. Bxe8 {[%emt 0:00:01]} Nd2 {[%emt 0:00:13]} 33. Bg6 {[%emt 0:00:17]} Rf6 {[%emt 0:00:06]} 34. Bd3 {[%emt 0:00:10]} Rf3 {[%emt 0:00:14]} 35. Bg6 {[%emt 0:00:41]} Rxc3 {[%emt 0:00:23]} 36. Re1 {[%emt 0:00:04]} Ne4 {[%emt 0:00:04]} 37. Bxe4 {[%emt 0:00:13]} dxe4 {[%emt 0:00:02]} 38. Rxe4 {[%emt 0:00:01]} Ra3 {[%emt 0:00:07]} 39. Re7 {[%emt 0:00:09]} Rxa5 {[%emt 0:00:08]} 40. Rxb7 {[%emt 0:00:02]} Rd5 {[%emt 0:00:08]} 41. Rxa7 {[%emt 0:00:06]} Rxd4 {[%emt 0:00:02]} 42. h5 {[%emt 0:00:06]} Rd5 {[%emt 0:00:05]} 43. g4 {[%emt 0:00:02]} Rd4 {[%emt 0:00:07]} 44. Kg3 {[%emt 0:00:05]} Rd3+ {[%emt 0:00:02]} 45. f3 {[%emt 0:00:01]} Rd1 {[%emt 0:00:02]} 46. Rb7 {[%emt 0:00:06]} Rc1 {[%emt 0:00:05]} 47. Kf4 {[%emt 0:00:15]} Rc4+ {[%emt 0:00:03]} 48. Ke5 {[%emt 0:00:07]} Rc5+ {[%emt 0:00:05]} 49. Kd4 {[%emt 0:00:05]} Rc1 {[%emt 0:00:05]} 50. Ke4 {[%emt 0:00:18]} Re1+ {[%emt 0:00:05]} 51. Kf5 {[%emt 0:00:04]} Rc1 {[%emt 0:00:06]} 52. Rb5 {[%emt 0:00:05]} Rc3 {[%emt 0:00:08]} 53. f4 {[%emt 0:00:02]} Rc6 {[%emt 0:00:02]} 54. g5 {[%emt 0:00:01]} hxg5 {[%emt 0:00:06]} 55. fxg5 {[%emt 0:00:08]} Kh7 {[%emt 0:00:11]} 56. Re5 {[%emt 0:00:06]} Rc1 {[%emt 0:00:10]} 57. Re4 {[%emt 0:00:18]} Rf1+ {[%emt 0:00:05]} 58. Rf4 {[%emt 0:00:03]} Rxf4+ {[%emt 0:00:16]} 59. Kxf4 {[%emt 0:00:02]} Kg8 {[%emt 0:00:02]} 60. Kf5 {[%emt 0:00:03]} Kh7 {[%emt 0:00:01]} 61. Ke6 {[%emt 0:00:06]} Kg8 {[%emt 0:00:02]} 62. Ke7 {[%emt 0:00:07]} Kh8 {[%emt 0:00:05]} 63. Kf8 {[%emt 0:00:11]} Kh7 {[%emt 0:00:03]} 64. Kf7 {[%emt 0:00:15]} Kh8 {[%emt 0:00:06]} 65. h6 {[%emt 0:00:08]} gxh6 {[%emt 0:00:02]} 66. g6 {[%emt 0:00:02]} h5 {[%emt 0:00:08]} 67. g7+ {[%emt 0:00:02]} Kh7 {[%emt 0:00:01]} 68. g8=Q+ {[%emt 0:00:04]} Kh6 {[%emt 0:00:02]} 69. Qg6# {[%emt 0:00:02]} 1-0

[Event "27th Sharjah International Rapid Chess-c"]
[Site "Sharjah"]
[Date "2022.04.07"]
[Round "5.25"]
[White "Dehghan, Ibrahim"]
[Black "Ghnatios, Ralph"]
[Result "0-1"]
[ECO "A43"]
[WhiteElo "1382"]
[BlackElo "1805"]
[Annotator "NA RC"]
[PlyCount "112"]
[EventDate "2022.04.07"]
[EventType "rapid"]
[EventCountry "UAE"]
[SourceTitle "playchess.com"]
[Source "ChessBase"]
[SourceQuality "1"]
[TimeControl "600+3"]

1. d4 {[%emt 0:00:02]} Nf6 {[%emt 0:00:01]} 2. Nf3 {[%emt 0:00:01]} c5 {[%emt 0:00:20]} 3. d5 {[%emt 0:00:01]} d6 {[%emt 0:00:04]} 4. Nc3 {[%emt 0:00:02]} g6 {[%emt 0:00:04]} 5. e4 {[%emt 0:00:02]} Bg7 {[%emt 0:00:02]} 6. Be2 {[%emt 0:00:02]} e6 {[%emt 0:00:33]} 7. O-O {[%emt 0:00:06]} exd5 {[%emt 0:00:03]} 8. exd5 {[%emt 0:00:01]} O-O {[%emt 0:00:06]} 9. h3 {[%emt 0:00:02]} Na6 {[%emt 0:01:19]} 10. Bf4 {[%emt 0:00:07]} Nc7 {[%emt 0:00:30]} 11. a4 {[%emt 0:00:11]} b6 {[%emt 0:00:10]} 12. Nd2 {[%emt 0:01:25]} Nfxd5 {[%emt 0:00:17]} 13. Nxd5 {[%emt 0:00:03]} Nxd5 {[%emt 0:00:01]} 14. Bf3 {[%emt 0:00:24]} Nxf4 {[%emt 0:01:53]} 15. Bxa8 {[%emt 0:00:05]} Ba6 {[%emt 0:00:17]} 16. Bf3 {[%emt 0:00:38]} Bxf1 {[%emt 0:00:04]} 17. Nxf1 {[%emt 0:00:02]} Bxb2 {[%emt 0:00:18]} 18. Rb1 {[%emt 0:00:29]} Bd4 {[%emt 0:00:26]} 19. Ne3 {[%emt 0:00:03]} Qg5 {[%emt 0:00:22]} 20. Kh1 {[%emt 0:00:23]} Re8 {[%emt 0:00:27]} 21. c3 {[%emt 0:00:12]} Be5 {[%emt 0:00:38]} 22. Ng4 {[%emt 0:00:17]} h5 {[%emt 0:00:12]} 23. Nxe5 {[%emt 0:00:02]} Qxe5 {[%emt 0:00:10]} 24. Qd2 {[%emt 0:00:08]} c4 {[%emt 0:00:13]} 25. Bc6 {[%emt 0:00:47]} Re7 {[%emt 0:00:18]} 26. Bb5 {[%emt 0:00:24]} d5 {[%emt 0:00:09]} 27. Rd1 {[%emt 0:00:45]} Kg7 {[%emt 0:00:15]} 28. Qd4 {[%emt 0:00:25]} Ne2 {[%emt 0:00:37]} 29. Qxe5+ {[%emt 0:00:48]} Rxe5 {[%emt 0:00:02]} 30. a5 {[%emt 0:00:16]} Nxc3 {[%emt 0:00:04]} 31. axb6 {[%emt 0:00:12]} axb6 {[%emt 0:00:01]} 32. f4 {[%emt 0:00:10]} Rf5 {[%emt 0:00:05]} 33. Re1 {[%emt 0:00:16]} Nxb5 {[%emt 0:00:03]} 34. Rb1 {[%emt 0:00:00]} d4 {[%emt 0:00:01]} 35. g4 {[%emt 0:00:02]} Rd5 {[%emt 0:00:02]} 36. gxh5 {[%emt 0:00:02]} Rxh5 {[%emt 0:00:05]} 37. Kg2 {[%emt 0:00:03]} d3 {[%emt 0:00:08]} 38. f5 {[%emt 0:00:01]} Rxf5 {[%emt 0:00:02]} 39. h4 {[%emt 0:00:02]} Rd5 {[%emt 0:00:04]} 40. h5 {[%emt 0:00:02]} gxh5 {[%emt 0:00:02]} 41. Kf3 {[%emt 0:00:02]} d2 {[%emt 0:00:02]} 42. Rg1+ {[%emt 0:00:07]} Kf6 {[%emt 0:00:04]} 43. Rd1 {[%emt 0:00:13]} Nc3 {[%emt 0:00:02]} 44. Rg1 {[%emt 0:00:03]} d1=Q+ {[%emt 0:00:02]} 45. Rxd1 {[%emt 0:00:03]} Rxd1 {[%emt 0:00:02]} 46. Ke3 {[%emt 0:00:01]} Na4 {[%emt 0:00:04]} 47. Ke2 {[%emt 0:00:01]} Rd5 {[%emt 0:00:03]} 48. Ke3 {[%emt 0:00:01]} Ke5 {[%emt 0:00:02]} 49. Kf3 Rd4 {[%emt 0:00:03]} 50. Ke3 {[%emt 0:00:03]} b5 {[%emt 0:00:02]} 51. Kf3 {[%emt 0:00:01]} Re4 {[%emt 0:00:01]} 52. Kf2 {[%emt 0:00:02]} Kf4 {[%emt 0:00:01]} 53. Kg2 {[%emt 0:00:01]} Re3 {[%emt 0:00:02]} 54. Kf2 {[%emt 0:00:01]} b4 {[%emt 0:00:02]} 55. Kg2 {[%emt 0:00:01]} Rf3 {[%emt 0:00:03]} 56. Kg1 {[%emt 0:00:04]} Kg3 {[%emt 0:00:04]} 0-1